fUST/lending_fUST_20250221
["ID","MTS","AMOUNT","RATE_DAILY","PERIOD"]
[353853135,1740094246779,-500.0,0.00014273,2]
[353853136,1740094246788,-1562.09,0.00014273,2]
[353853137,1740094246798,-500.0,0.00014273,2]
[353853138,1740094246808,-500.0,0.00014273,2]
[353853139,1740094246818,-636.21,0.00014273,2]
[353853140,1740094246828,-972.89,0.00014273,2]
[353853141,1740094246837,-500.0,0.00014273,2]
[353853142,1740094246847,-500.0,0.00014273,2]
[353853143,1740094246857,-501.70011876,0.00014273,2]
[353853144,1740094246867,-1767.08,0.00014273,2]
[353853145,1740094246877,-1528.59,0.00014273,2]
[353853146,1740094246887,-2717.67,0.00014273,2]
[353853147,1740094246897,-1560.2,0.00014273,2]
[353853148,1740094246908,-500.0,0.00014273,2]
[353853149,1740094246917,-1786.89,0.00014273,2]
[353853150,1740094246926,-514.1,0.00014273,2]
[353853151,1740094246936,-13706.7,0.00014273,2]
[353853152,1740094246946,-562.02,0.00014273,2]
[353853153,1740094246956,-500.0,0.00014273,2]
[353853154,1740094246965,-1553.37,0.00014273,2]
[353853155,1740094246975,-500.0,0.00014273,2]
[353853156,1740094246985,-1393.71,0.00014273,2]
[353853157,1740094246995,-500.0,0.00014273,2]
[353853158,1740094247004,-500.0,0.00014273,2]
[353853159,1740094247014,-670.89,0.00014273,2]
[353853160,1740094247023,-500.0,0.00014273,2]
[353853161,1740094247033,-6363.56,0.00014273,2]
[353853162,1740094247043,-4370.44,0.00014273,2]
[353853163,1740094247054,-500.0,0.00014273,2]
[353853164,1740094247064,-500.0,0.00014273,2]
[353853165,1740094247075,-1671.71,0.00014273,2]
[353853166,1740094247085,-500.0,0.00014273,2]
[353853167,1740094247094,-2799.98,0.00014273,2]
[353853168,1740094247104,-11416.76,0.00014273,2]
[353853169,1740094247114,-1309.24,0.00014273,2]
[353853170,1740094247124,-679.78,0.00014273,2]
[353853171,1740094247136,-160.0,0.00014276,3]
[353853172,1740094247145,-500.0,0.00014356,2]
[353853173,1740094247155,-500.0,0.00014356,2]
[353853174,1740094247164,-500.0,0.00014356,2]
[353853175,1740094247173,-500.0,0.00014356,2]
[353853176,1740094247183,-500.0,0.00014356,2]
[353853177,1740094247192,-621.58,0.00014356,2]
[353853178,1740094247202,-500.0,0.00014356,2]
[353853179,1740094247212,-780.25,0.00014356,2]
[353853180,1740094247222,-861.13,0.00014356,2]
[353853181,1740094247232,-500.0,0.00014356,2]
[353853182,1740094247242,-500.0,0.00014356,2]
[353853183,1740094247251,-500.0,0.00014356,2]
[353853184,1740094247261,-500.0,0.00014356,2]
[353853185,1740094247271,-500.0,0.00014356,2]
[353853186,1740094247280,-500.0,0.00014356,2]
[353853187,1740094247291,-500.0,0.00014356,2]
[353853188,1740094247300,-566.83,0.00014356,2]
[353853189,1740094247310,-500.0,0.00014356,2]
[353853190,1740094247320,-500.0,0.00014356,2]
[353853191,1740094247330,-500.0,0.00014356,2]
[353853192,1740094247340,-880.39,0.00014356,2]
[353853193,1740094247349,-650.81,0.00014356,2]
[353853194,1740094247359,-480.69922957,0.00014356,2]
[353853195,1740094247369,-500.0,0.00014356,2]
[353853196,1740094247379,-646.72,0.00014356,2]
[353853197,1740094247390,-500.0,0.00014356,2]
[353853198,1740094247400,-500.0,0.00014356,2]
[353853199,1740094247410,-500.0,0.00014356,2]
[353853200,1740094247419,-500.0,0.00014356,2]
[353853201,1740094247429,-752.93,0.00014356,2]
[353853202,1740094247438,-500.0,0.00014356,2]
[353853203,1740094247448,-500.0,0.00014356,2]
[353853204,1740094247458,-500.0,0.00014356,2]
[353853205,1740094247468,-950.61,0.00014356,2]
[353853206,1740094247478,-2211.13,0.00014356,2]
[353853207,1740094247487,-921.92,0.00014356,2]
[353853208,1740094247497,-1471.46,0.00014356,2]
[353853209,1740094247507,-500.0,0.00014356,2]
[353853210,1740094247517,-1158.92,0.00014356,2]
[353853211,1740094247527,-30771.66,0.00014356,2]
[353853212,1740094247536,-500.0,0.00014356,2]
[353853213,1740094247546,-974.73,0.00014356,2]
[353853214,1740094247556,-1439.4,0.00014356,2]
[353853215,1740094247566,-500.0,0.00014356,2]
[353853216,1740094247575,-1913.0,0.00014356,2]
[353853217,1740094247585,-1049.41,0.00014356,2]
[353853218,1740094247595,-1207.72,0.00014356,2]
[353853219,1740094247605,-500.0,0.00014356,2]
[353853220,1740094247615,-2590.22,0.00014356,2]
[353853221,1740094247626,-6.87706447,0.00014356,2]
[353853222,1740094247829,-500.0,0.00014191,2]
[353853223,1740094247839,-500.0,0.00014273,2]
[353853224,1740094247849,-5103.34293553,0.00014356,2]
[353853225,1740094247858,-711.86,0.00014356,2]
[353853226,1740094247867,-500.0,0.00014356,2]
[353853227,1740094247877,-2889.63,0.00014356,2]
[353853228,1740094247886,-500.0,0.00014356,2]
[353853229,1740094247895,-1562.09,0.00014356,2]
[353853230,1740094247903,-500.0,0.00014356,2]
[353853231,1740094247913,-500.0,0.00014356,2]
[353853232,1740094247922,-636.21,0.00014356,2]
[353853233,1740094247932,-972.89,0.00014356,2]
[353853234,1740094247941,-500.0,0.00014356,2]
[353853235,1740094247950,-500.0,0.00014356,2]
[353853236,1740094247959,-1767.08,0.00014356,2]
[353853237,1740094247968,-1528.59,0.00014356,2]
[353853238,1740094247978,-2717.67,0.00014356,2]
[353853239,1740094247989,-1560.2,0.00014356,2]
[353853240,1740094247998,-1786.89,0.00014356,2]
[353853241,1740094248008,-500.0,0.00014356,2]
[353853242,1740094248017,-514.1,0.00014356,2]
[353853243,1740094248026,-13706.7,0.00014356,2]
[353853244,1740094248036,-562.02,0.00014356,2]
[353853245,1740094248045,-367.14606317,0.00014356,2]
[353853246,1740094248055,-1553.37,0.00014356,2]
[353853247,1740094248064,-500.0,0.00014356,2]
[353853248,1740094248074,-1393.71,0.00014356,2]
[353853249,1740094248084,-500.0,0.00014356,2]
[353853250,1740094248093,-500.0,0.00014356,2]
[353853251,1740094248103,-670.89,0.00014356,2]
[353853252,1740094248112,-500.0,0.00014356,2]
[353853253,1740094248121,-6363.56,0.00014356,2]
[353853254,1740094248131,-4370.44,0.00014356,2]
[353853255,1740094248141,-500.0,0.00014356,2]
[353853256,1740094248151,-500.0,0.00014356,2]
[353853257,1740094248160,-1671.71,0.00014356,2]
[353853258,1740094248169,-500.0,0.00014356,2]
[353853259,1740094248178,-2799.98,0.00014356,2]
[353853260,1740094248188,-11416.76,0.00014356,2]
[353853261,1740094248198,-1309.24,0.00014356,2]
[353853262,1740094248207,-679.78,0.00014356,2]
[353853263,1740094248216,-500.0,0.00014356,2]
[353853264,1740094248226,-155.6032124,0.00014356,2]
[353853265,1740094248235,-153.0,0.00014356,2]
[353853266,1740094248245,-154.7577468,0.00014356,2]
[353853267,1740094248255,-153.0,0.00014356,2]
[353853268,1740094248264,-557.1710486,0.00014356,2]
[353853269,1740094248273,-153.0,0.00014356,2]
[353853270,1740094248283,-154.7577468,0.00014356,2]
[353853271,1740094248292,-153.0,0.00014356,2]
[353853272,1740094248301,-153.0,0.00014356,2]
[353853273,1740094248311,-557.1710486,0.00014356,2]
[353853274,1740094248320,-154.7577468,0.00014356,2]
[353853275,1740094248330,-153.0,0.00014356,2]
[353853276,1740094248339,-557.1710486,0.00014356,2]
[353853277,1740094248349,-153.0,0.00014356,2]
[353853278,1740094248359,-154.7577468,0.00014356,2]
[353853279,1740094248368,-153.0,0.00014356,2]
[353853280,1740094248378,-153.0,0.00014356,2]
[353853281,1740094248387,-217.9880847,0.00014356,2]
[353853282,1740094248396,-154.7577468,0.00014356,2]
[353853283,1740094248405,-153.0,0.00014356,2]
[353853284,1740094248415,-153.0,0.00014356,2]
[353853285,1740094248425,-153.0,0.00014356,2]
[353853286,1740094248434,-154.7577468,0.00014356,2]
[353853287,1740094248443,-153.0,0.00014356,2]
[353853288,1740094248453,-154.7577468,0.00014356,2]
[353853289,1740094248462,-153.0,0.00014356,2]
[353853290,1740094248471,-154.7577468,0.00014356,2]
[353853291,1740094248480,-153.0,0.00014356,2]
[353853292,1740094248596,-153.0,0.00014356,2]
[353853293,1740094248607,-153.0,0.00014356,2]
[353853294,1740094248617,-153.0,0.00014356,2]
[353853295,1740094248627,-154.7577468,0.00014356,2]
[353853296,1740094248636,-154.7577468,0.00014356,2]
[353853297,1740094248646,-209.0499117,0.00014356,2]
[353853298,1740094248655,-154.7577468,0.00014356,2]
[353853299,1740094248664,-154.7577468,0.00014356,2]
[353853300,1740094248674,-883.68660768,0.00014385,2]
[353853301,1740094248686,-2902.79,0.000144,2]
[353853302,1740094248696,-2500.0,0.000144,2]
[353853303,1740094248705,-500.0,0.00014438,2]
[353853304,1740094248715,-500.0,0.00014438,2]
[353853305,1740094248726,-429.0090621,0.00014438,2]
[353853306,1740094248737,-500.0,0.00014438,2]
[353853307,1740094248747,-500.0,0.00014438,2]
[353853308,1740094248758,-621.58,0.00014438,2]
[353853309,1740094248768,-500.0,0.00014438,2]
[353853310,1740094248778,-780.25,0.00014438,2]
[353853311,1740094248788,-861.13,0.00014438,2]
[353853312,1740094248798,-500.0,0.00014438,2]
[353853313,1740094248808,-500.0,0.00014438,2]
[353853314,1740094248817,-500.0,0.00014438,2]
[353853315,1740094248826,-500.0,0.00014438,2]
[353853316,1740094248836,-500.0,0.00014438,2]
[353853317,1740094248845,-500.0,0.00014438,2]
[353853318,1740094248854,-500.0,0.00014438,2]
[353853319,1740094248863,-566.83,0.00014438,2]
[353853320,1740094248873,-500.0,0.00014438,2]
[353853321,1740094248882,-500.0,0.00014438,2]
[353853322,1740094248892,-500.0,0.00014438,2]
[353853323,1740094248902,-880.39,0.00014438,2]
[353853324,1740094248911,-650.81,0.00014438,2]
[353853325,1740094248921,-500.0,0.00014438,2]
[353853326,1740094248930,-646.72,0.00014438,2]
[353853327,1740094248940,-500.0,0.00014438,2]
[353853328,1740094248950,-500.0,0.00014438,2]
[353853329,1740094248959,-500.0,0.00014438,2]
[353853330,1740094248969,-500.0,0.00014438,2]
[353853331,1740094248978,-752.93,0.00014438,2]
[353853332,1740094248988,-500.0,0.00014438,2]
[353853333,1740094248997,-500.0,0.00014438,2]
[353853334,1740094249007,-950.61,0.00014438,2]
[353853335,1740094249016,-500.0,0.00014438,2]
[353853336,1740094249026,-2211.13,0.00014438,2]
[353853337,1740094249036,-921.92,0.00014438,2]
[353853338,1740094249046,-1471.46,0.00014438,2]
[353853339,1740094249055,-500.0,0.00014438,2]
[353853340,1740094249065,-1158.92,0.00014438,2]
[353853341,1740094249075,-30771.66,0.00014438,2]
[353853342,1740094249084,-500.0,0.00014438,2]
[353853343,1740094249094,-974.73,0.00014438,2]
[353853344,1740094249103,-1439.4,0.00014438,2]
[353853345,1740094249113,-500.0,0.00014438,2]
[353853346,1740094249122,-1913.0,0.00014438,2]
[353853347,1740094249132,-1049.41,0.00014438,2]
[353853348,1740094249141,-1207.72,0.00014438,2]
[353853349,1740094249151,-500.0,0.00014438,2]
[353853350,1740094249160,-2590.22,0.00014438,2]
[353853351,1740094249170,-5110.22,0.00014438,2]
[353853352,1740094249179,-711.86,0.00014438,2]
[353853353,1740094249189,-500.0,0.00014438,2]
[353853354,1740094249198,-2889.63,0.00014438,2]
[353853355,1740094249207,-500.0,0.00014438,2]
[353853356,1740094249217,-1562.09,0.00014438,2]
[353853357,1740094249227,-500.0,0.00014438,2]
[353853358,1740094249236,-500.0,0.00014438,2]
[353853359,1740094249245,-636.21,0.00014438,2]
[353853360,1740094249255,-972.89,0.00014438,2]
[353853361,1740094249264,-500.0,0.00014438,2]
[353853362,1740094249274,-500.0,0.00014438,2]
[353853363,1740094249284,-1767.08,0.00014438,2]
[353853364,1740094249294,-1528.59,0.00014438,2]
[353853365,1740094249304,-2717.67,0.00014438,2]
[353853366,1740094249314,-1560.2,0.00014438,2]
[353853367,1740094249323,-500.0,0.00014438,2]
[353853368,1740094249333,-1786.89,0.00014438,2]
[353853369,1740094249343,-514.1,0.00014438,2]
[353853370,1740094249353,-13706.7,0.00014438,2]
[353853371,1740094249362,-562.02,0.00014438,2]
[353853372,1740094249372,-1553.37,0.00014438,2]
[353853373,1740094249383,-500.0,0.00014438,2]
[353853374,1740094249393,-1393.71,0.00014438,2]
[353853375,1740094249402,-500.0,0.00014438,2]
[353853376,1740094249411,-500.0,0.00014438,2]
[353853377,1740094249420,-670.89,0.00014438,2]
[353853378,1740094249430,-500.0,0.00014438,2]
[353853379,1740094249439,-6363.56,0.00014438,2]
[353853380,1740094249448,-4370.44,0.00014438,2]
[353853381,1740094249458,-500.0,0.00014438,2]
[353853382,1740094249467,-500.0,0.00014438,2]
[353853383,1740094249476,-1671.71,0.00014438,2]
[353853384,1740094249485,-500.0,0.00014438,2]
[353853385,1740094249495,-2799.98,0.00014438,2]
[353853386,1740094249504,-11416.76,0.00014438,2]
[353853387,1740094249513,-1309.24,0.00014438,2]
[353853388,1740094249522,-679.78,0.00014438,2]
[353853389,1740094249531,-500.0,0.00014438,2]
[353853390,1740094249541,-168.26106217,0.00014466,2]
[353853391,1740094249551,-168.26106217,0.00014466,2]
[353853392,1740094249561,-500.0,0.0001452,2]
[353853393,1740094249570,-500.0,0.0001452,2]
[353853394,1740094249579,-500.0,0.0001452,2]
[353853395,1740094249588,-500.0,0.0001452,2]
[353853396,1740094249597,-621.58,0.0001452,2]
[353853397,1740094249607,-500.0,0.0001452,2]
[353853398,1740094249616,-780.25,0.0001452,2]
[353853399,1740094249626,-861.13,0.0001452,2]
[353853400,1740094249635,-500.0,0.0001452,2]
[353853401,1740094249644,-500.0,0.0001452,2]
[353853402,1740094249654,-500.0,0.0001452,2]
[353853403,1740094249663,-427.22317382,0.0001452,2]
[353853404,1740094249674,-500.0,0.0001452,2]
[353853405,1740094249686,-500.0,0.0001452,2]
[353853406,1740094249695,-500.0,0.0001452,2]
[353853407,1740094249704,-566.83,0.0001452,2]
[353853408,1740094249714,-500.0,0.0001452,2]
[353853409,1740094249727,-500.0,0.0001452,2]
[353853410,1740094249737,-500.0,0.0001452,2]
[353853411,1740094249747,-880.39,0.0001452,2]
[353853412,1740094249757,-650.81,0.0001452,2]
[353853413,1740094249767,-500.0,0.0001452,2]
[353853414,1740094249776,-646.72,0.0001452,2]
[353853415,1740094249786,-500.0,0.0001452,2]
[353853416,1740094249796,-500.0,0.0001452,2]
[353853417,1740094249805,-500.0,0.0001452,2]
[353853418,1740094249815,-500.0,0.0001452,2]
[353853419,1740094249824,-752.93,0.0001452,2]
[353853420,1740094249834,-500.0,0.0001452,2]
[353853421,1740094249843,-500.0,0.0001452,2]
[353853422,1740094249852,-950.61,0.0001452,2]
[353853423,1740094249862,-500.0,0.0001452,2]
[353853424,1740094249871,-2211.13,0.0001452,2]
[353853425,1740094249882,-921.92,0.0001452,2]
[353853426,1740094249891,-1471.46,0.0001452,2]
[353853427,1740094249900,-500.0,0.0001452,2]
[353853428,1740094249910,-1158.92,0.0001452,2]
[353853429,1740094249919,-30771.66,0.0001452,2]
[353853430,1740094249928,-500.0,0.0001452,2]
[353853431,1740094249938,-974.73,0.0001452,2]
[353853432,1740094249948,-1439.4,0.0001452,2]
[353853433,1740094249957,-500.0,0.0001452,2]
[353853434,1740094249966,-1913.0,0.0001452,2]
[353853435,1740094249975,-1049.41,0.0001452,2]
[353853436,1740094249984,-1207.72,0.0001452,2]
[353853437,1740094249994,-500.0,0.0001452,2]
[353853438,1740094250004,-2590.22,0.0001452,2]
[353853439,1740094250013,-5110.22,0.0001452,2]
[353853440,1740094250023,-711.86,0.0001452,2]
[353853441,1740094250033,-500.0,0.0001452,2]
[353853442,1740094250042,-2889.63,0.0001452,2]
[353853443,1740094250052,-500.0,0.0001452,2]
[353853444,1740094250061,-1562.09,0.0001452,2]
[353853445,1740094250070,-500.0,0.0001452,2]
[353853446,1740094250079,-500.0,0.0001452,2]
[353853447,1740094250089,-636.21,0.0001452,2]
[353853448,1740094250098,-972.89,0.0001452,2]
[353853449,1740094250108,-500.0,0.0001452,2]
[353853450,1740094250117,-640.04,0.0001452,2]
[353853451,1740094250127,-1767.08,0.0001452,2]
[353853452,1740094250136,-1528.59,0.0001452,2]
[353853453,1740094250146,-2717.67,0.0001452,2]
[353853454,1740094250156,-1560.2,0.0001452,2]
[353853455,1740094250165,-500.0,0.0001452,2]
[353853456,1740094250176,-1786.89,0.0001452,2]
[353853457,1740094250185,-514.1,0.0001452,2]
[353853458,1740094250195,-13706.7,0.0001452,2]
[353853459,1740094250204,-562.02,0.0001452,2]
[353853460,1740094250213,-1553.37,0.0001452,2]
[353853461,1740094250222,-500.0,0.0001452,2]
[353853462,1740094250231,-1393.71,0.0001452,2]
[353853463,1740094250240,-500.0,0.0001452,2]
[353853464,1740094250249,-500.0,0.0001452,2]
[353853465,1740094250259,-670.89,0.0001452,2]
[353853466,1740094250268,-500.0,0.0001452,2]
[353853467,1740094250277,-6363.56,0.0001452,2]
[353853468,1740094250287,-4370.44,0.0001452,2]
[353853469,1740094250297,-500.0,0.0001452,2]
[353853470,1740094250306,-500.0,0.0001452,2]
[353853471,1740094250316,-1671.71,0.0001452,2]
[353853472,1740094250325,-500.0,0.0001452,2]
[353853473,1740094250335,-2799.98,0.0001452,2]
[353853474,1740094250344,-11416.76,0.0001452,2]
[353853475,1740094250354,-1309.24,0.0001452,2]
[353853476,1740094250363,-679.78,0.0001452,2]
[353853477,1740094250372,-213.81193211,0.0001452,2]
[353853478,1740094250382,-11866.1117743,0.00014565,2]
[353853479,1740094250391,-306.0,0.0001458,2]
[353853480,1740094250401,-653.7503432,0.00014601,2]
[353853481,1740094250410,-500.0,0.00014602,2]
[353853482,1740094250419,-500.0,0.00014602,2]
[353853483,1740094250429,-500.0,0.00014602,2]
[353853484,1740094250438,-500.0,0.00014602,2]
[353853485,1740094250448,-621.58,0.00014602,2]
[353853486,1740094250458,-500.0,0.00014602,2]
[353853487,1740094250467,-780.25,0.00014602,2]
[353853488,1740094250476,-861.13,0.00014602,2]
[353853489,1740094250486,-500.0,0.00014602,2]
[353853490,1740094250495,-160.07609738,0.00014602,2]
[353853491,1740094250504,-500.0,0.00014602,2]
[353853492,1740094250514,-500.0,0.00014602,2]
[353853493,1740094250523,-500.0,0.00014602,2]
[353853494,1740094250533,-500.0,0.00014602,2]
[353853495,1740094250542,-566.83,0.00014602,2]
[353853496,1740094250552,-500.0,0.00014602,2]
[353853497,1740094250561,-500.0,0.00014602,2]
[353853498,1740094250571,-500.0,0.00014602,2]
[353853499,1740094250581,-880.39,0.00014602,2]
[353853500,1740094250590,-650.81,0.00014602,2]
[353853501,1740094250599,-178.33142665,0.00014602,2]
[353853502,1740094250608,-646.72,0.00014602,2]
[353853503,1740094250619,-500.0,0.00014602,2]
[353853504,1740094250628,-232.94,0.00014602,2]
[353853505,1740094250637,-500.0,0.00014602,2]
[353853506,1740094250647,-500.0,0.00014602,2]
[353853507,1740094250657,-752.93,0.00014602,2]
[353853508,1740094250666,-619.71900022,0.00014602,2]
[353853509,1740094250677,-541.58802405,0.00014602,2]
[353853510,1740094250687,-534.24164495,0.00014602,2]
[353853511,1740094250697,-950.61,0.00014602,2]
[353853512,1740094250706,-2211.13,0.00014602,2]
[353853513,1740094250719,-921.92,0.00014602,2]
[353853514,1740094250729,-1471.46,0.00014602,2]
[353853515,1740094250739,-351.69876726,0.00014602,2]
[353853516,1740094250750,-1158.92,0.00014602,2]
[353853517,1740094250759,-30771.66,0.00014602,2]
[353853518,1740094250769,-500.0,0.00014602,2]
[353853519,1740094250779,-974.73,0.00014602,2]
[353853520,1740094250788,-1439.4,0.00014602,2]
[353853521,1740094250798,-500.0,0.00014602,2]
[353853522,1740094250807,-1913.0,0.00014602,2]
[353853523,1740094250817,-1049.41,0.00014602,2]
[353853524,1740094250826,-1207.72,0.00014602,2]
[353853525,1740094250835,-500.0,0.00014602,2]
[353853526,1740094250845,-2590.22,0.00014602,2]
[353853527,1740094250854,-5110.22,0.00014602,2]
[353853528,1740094250864,-711.86,0.00014602,2]
[353853529,1740094250873,-500.0,0.00014602,2]
[353853530,1740094250983,-2889.63,0.00014602,2]
[353853531,1740094250992,-500.0,0.00014602,2]
[353853532,1740094251001,-1562.09,0.00014602,2]
[353853533,1740094251011,-500.0,0.00014602,2]
[353853534,1740094251021,-500.0,0.00014602,2]
[353853535,1740094251030,-636.21,0.00014602,2]
[353853536,1740094251040,-972.89,0.00014602,2]
[353853537,1740094251051,-500.0,0.00014602,2]
[353853538,1740094251061,-1767.08,0.00014602,2]
[353853539,1740094251071,-1528.59,0.00014602,2]
[353853540,1740094251080,-2717.67,0.00014602,2]
[353853541,1740094251090,-1560.2,0.00014602,2]
[353853542,1740094251099,-500.0,0.00014602,2]
[353853543,1740094251110,-1786.89,0.00014602,2]
[353853544,1740094251120,-514.1,0.00014602,2]
[353853545,1740094251130,-13706.7,0.00014602,2]
[353853546,1740094251139,-562.02,0.00014602,2]
[353853547,1740094251149,-1553.37,0.00014602,2]
[353853548,1740094251160,-500.0,0.00014602,2]
[353853549,1740094251169,-1393.71,0.00014602,2]
[353853550,1740094251179,-500.0,0.00014602,2]
[353853551,1740094251189,-500.0,0.00014602,2]
[353853552,1740094251199,-670.89,0.00014602,2]
[353853553,1740094251210,-500.0,0.00014602,2]
[353853554,1740094251220,-6363.56,0.00014602,2]
[353853555,1740094251230,-4370.44,0.00014602,2]
[353853556,1740094251239,-500.0,0.00014602,2]
[353853557,1740094251249,-500.0,0.00014602,2]
[353853558,1740094251259,-1671.71,0.00014602,2]
[353853559,1740094251268,-500.0,0.00014602,2]
[353853560,1740094251279,-2799.98,0.00014602,2]
[353853561,1740094251288,-11416.76,0.00014602,2]
[353853562,1740094251298,-1309.24,0.00014602,2]
[353853563,1740094251308,-679.78,0.00014602,2]
[353853564,1740094251316,-605.42324317,0.0001465,2]
[353853565,1740094251326,-500.0,0.00014673,2]
[353853566,1740094251336,-500.0,0.00014673,2]
[353853567,1740094251346,-500.0,0.00014673,2]
[353853568,1740094251355,-500.0,0.00014684,2]
[353853569,1740094251365,-500.0,0.00014684,2]
[353853570,1740094251374,-500.0,0.00014684,2]
[353853571,1740094251383,-500.0,0.00014684,2]
[353853572,1740094251393,-621.58,0.00014684,2]
[353853573,1740094251403,-500.0,0.00014684,2]
[353853574,1740094251412,-780.25,0.00014684,2]
[353853575,1740094251422,-861.13,0.00014684,2]
[353853576,1740094251432,-500.0,0.00014684,2]
[353853577,1740094251442,-507.63413278,0.00014684,2]
[353853578,1740094251451,-500.0,0.00014684,2]
[353853579,1740094251460,-500.0,0.00014684,2]
[353853580,1740094251470,-500.0,0.00014684,2]
[353853581,1740094251480,-566.83,0.00014684,2]
[353853582,1740094251490,-500.0,0.00014684,2]
[353853583,1740094251499,-500.0,0.00014684,2]
[353853584,1740094251509,-500.0,0.00014684,2]
[353853585,1740094251519,-880.39,0.00014684,2]
[353853586,1740094251529,-650.81,0.00014684,2]
[353853587,1740094251539,-646.72,0.00014684,2]
[353853588,1740094251550,-500.0,0.00014684,2]
[353853589,1740094251559,-500.0,0.00014684,2]
[353853590,1740094251569,-500.0,0.00014684,2]
[353853591,1740094251580,-752.93,0.00014684,2]
[353853592,1740094251590,-950.61,0.00014684,2]
[353853593,1740094251599,-2211.13,0.00014684,2]
[353853594,1740094251608,-921.92,0.00014684,2]
[353853595,1740094251617,-1471.46,0.00014684,2]
[353853596,1740094251627,-1158.92,0.00014684,2]
[353853597,1740094251637,-30771.66,0.00014684,2]
[353853598,1740094251646,-539.74827788,0.00014684,2]
[353853599,1740094251655,-974.73,0.00014684,2]
[353853600,1740094251664,-1439.4,0.00014684,2]
[353853601,1740094251675,-500.0,0.00014684,2]
[353853602,1740094251686,-1913.0,0.00014684,2]
[353853603,1740094251695,-1049.41,0.00014684,2]
[353853604,1740094251704,-1207.72,0.00014684,2]
[353853605,1740094251713,-500.0,0.00014684,2]
[353853606,1740094251724,-2590.22,0.00014684,2]
[353853607,1740094251735,-5110.22,0.00014684,2]
[353853608,1740094251746,-711.86,0.00014684,2]
[353853609,1740094251758,-500.0,0.00014684,2]
[353853610,1740094251767,-2889.63,0.00014684,2]
[353853611,1740094251777,-500.0,0.00014684,2]
[353853612,1740094251787,-1562.09,0.00014684,2]
[353853613,1740094251797,-500.0,0.00014684,2]
[353853614,1740094251807,-500.0,0.00014684,2]
[353853615,1740094251817,-636.21,0.00014684,2]
[353853616,1740094251827,-972.89,0.00014684,2]
[353853617,1740094251836,-500.0,0.00014684,2]
[353853618,1740094251846,-1767.08,0.00014684,2]
[353853619,1740094251855,-1528.59,0.00014684,2]
[353853620,1740094251865,-2717.67,0.00014684,2]
[353853621,1740094251875,-1560.2,0.00014684,2]
[353853622,1740094251885,-258.7253128,0.00014684,2]
[353853623,1740094251894,-1786.89,0.00014684,2]
[353853624,1740094251904,-514.1,0.00014684,2]
[353853625,1740094251914,-13706.7,0.00014684,2]
[353853626,1740094251923,-562.02,0.00014684,2]
[353853627,1740094251933,-1553.37,0.00014684,2]
[353853628,1740094251944,-500.0,0.00014684,2]
[353853629,1740094251954,-1393.71,0.00014684,2]
[353853630,1740094251963,-500.0,0.00014684,2]
[353853631,1740094251972,-500.0,0.00014684,2]
[353853632,1740094251982,-670.89,0.00014684,2]
[353853633,1740094251992,-500.0,0.00014684,2]
[353853634,1740094252002,-6363.56,0.00014684,2]